Cogmind - Beta 15 @@@ ROGUE MODE // 2025.09.05 @ 12:34:48 Player: Skergy Result: Destroyed by EE-TQX(R) with Subdweller Machine Gun Performance ------------- Evolutions (0) 0 Regions Visited (3) 600 Robots Destroyed (20) 100 Value Destroyed (576) 576 Prototype IDs (13) 260 Alien Tech Used (0) 0 Bonus (-29) -29 TOTAL SCORE: 1507 Bonus ------- Friendly Fire -29 Cogmind --------- Core Integrity 0/250 Matter 189/300 Energy 150/185 System Corruption 0% Temperature Cool (7) Movement Treading (160) Location -10/Subcaves Parts ------- > --- POWER (1+1) ------ Light Ion Engine Light Nuclear Core (+) > --- PROPULSION (2) --- Light Treads Spiked Treads > --- UTILITY (2) ------ Medium Storage Unit > --- WEAPON (2) ------- Powered Cannon > --- INVENTORY (10) --- Subdweller Power Source Light Treads Aluminum Leg Carbon-fiber Leg Assault Rifle Subdweller Machine Gun Grenade Launcher Mining Laser Multitool Peak State ------------ > --- POWER ------------ Light Ion Engine Light Nuclear Core > --- PROPULSION ------- Light Treads Spiked Treads > --- UTILITY ---------- Scrap Shield > --- WEAPON ----------- Powered Cannon > --- INVENTORY -------- Light Treads Subdweller Beam Cannon Mining Laser [Rating: 25] Favorites ----------- Power Ion Engine Engine Ion Engine Power Core Light Nuclear Core Propulsion Light Treads Treads Light Treads Utility Medium Storage Unit Device Sensor Array Storage Medium Storage Unit Processor Targeting Computer Protection Scrap Shield Weapon Assault Rifle Energy Cannon Powered Cannon Ballistic Gun Assault Rifle Launcher Grenade Launcher Special Weapon Mining Laser Build | -11 -10 -10 -10 ------- Run | Yrd Mat Min Sub Slots Evolved . | . . . . Power . | . . . . Propulsion . | . . . . Utility . | . . . . Weapon . | . . . . Parts Attached 19 | 6 3 3 7 Power 3 | 1 . . 2 Engine 2 | 1 . . 1 Core 1 | . . . 1 Reactor . | . . . . Propulsion 4 | 2 . 1 1 Treads 4 | 2 . 1 1 Leg . | . . . . Wheel . | . . . . Hover . | . . . . Flight . | . . . . Utility 5 | 1 3 . 1 Device 1 | . 1 . . Storage 2 | 1 1 . . Processor 1 | . 1 . . Hackware . | . . . . Protection 1 | . . . 1 Artifact . | . . . . Weapon 7 | 2 . 2 3 Energy Gun . | . . . . Energy Cannon 1 | . . . 1 Ballistic Gun 3 | 2 . . 1 Ballistic Cannon . | . . . . Launcher 2 | . . 2 . Special Weapon 1 | . . . 1 Impact Weapon . | . . . . Slashing Weapon . | . . . . Piercing Weapon . | . . . . Special Melee Weapon . | . . . . Unidentified Prototypes . | . . . . Parts Lost 2 | . . 1 1 Power . | . . . . Propulsion . | . . . . Utility 1 | . . . 1 Weapon 1 | . . 1 . Highest Loss Streak 1 | . . 1 1 To Critical Strikes . | . . . . Average Backups 8 | 3 8 9 8 Power 1 | . 1 1 . Propulsion 3 | 2 4 3 2 Utility 1 | . 1 2 1 Weapon 2 | . 1 2 3 Tool/Special . | . . . . Unused Backups 12 | . 2 2 8 Power 1 | . . . 1 Propulsion 6 | . 2 1 3 Utility 2 | . . . 2 Weapon 2 | . . 1 1 Tool/Special 1 | . . . 1 Average Slot Usage (%) 93 | . 98 99 90 Engine 13 | . 14 14 13 Core 3 | . . . 5 Treads 27 | . 28 28 26 Storage 12 | . 14 14 12 Processor 10 | . 10 14 9 Energy Cannon 3 | . . . 5 Ballistic Gun 13 | . 28 24 5 Launcher 5 | . . 3 7 Special Weapon 1 | . . . 1 Peak Build Rating 25 | 6 8 8 25 Average Rating 12 | 3 7 7 15 On Entrance 5 | . 6 8 8 Naked Turns . | . . . . Heaviest Build 35 | 13 18 20 35 Greatest Support 40 | 40 40 40 40 Greatest Overweight (x) . | . . . . Average Overweight (x) . | . . . . Largest Inventory Capacity 10 | 8 10 10 10 Average Capacity 9 | 6 9 10 9 Most Carried 10 | 6 10 10 10 Average Carried 8 | 4 8 9 9 Final Capacity 10 | 8 10 10 10 Final Carried 10 | 6 10 10 9 Class Distribution -------------------- 100% | Mutant Dominant Class ---------------- Mutant | -10/Materials Mutant | -10/Mines Mutant | -10/Subcaves Resources | -11 -10 -10 -10 ----------- Run | Yrd Mat Min Sub Matter Collected 636 | 207 40 157 232 Remotely . | . . . . Salvage Created 423 | . 40 72 311 Parts 36 | . 4 5 27 Haulers Intercepted . | . . . . Recyclers Shooed . | . . . . Parts Field Recycled . | . . . . Retrieved Matter . | . . . . Parts Self-Destructed 11 | . . . 11 Prevented . | . . . . Kills | -11 -10 -10 -10 ------- Run | Yrd Mat Min Sub Combat Hostiles Destroyed 18 | . 3 2 13 Guns 7 | . 3 2 2 Cannons 5 | . . . 5 AOE 6 | . . . 6 Classes Destroyed 7 | . 1 1 5 Turret 2 | . . . 2 Swarmer 7 | . 3 . 4 Grunt 2 | . . 2 . Sentry 1 | . . . 1 Cobbler 1 | . . . 1 Subdweller 8 | . . . 8 Scientist 1 | . . . 1 Best Kill Streak 6 | . 3 2 6 Combat Bots Only 4 | . 3 2 4 Max Kills in Single Turn 2 | . 1 1 2 Gunslinging . | . . . . Exploded 1 | . . . 1 Melee . | . . . . Uniques/NPCs Destroyed . | . . . . Combat | -11 -10 -10 -10 -------- Run | Yrd Mat Min Sub Hostile Shots Fired 133 | . 21 12 100 Missed 54 | . 5 1 48 Hits 79 | . 16 11 52 Projectile 79 | . 16 11 52 Critical Strikes 2 | . . . 2 Damage Taken 1032 | . 130 162 740 Core 260 | . 39 15 206 Absorbed by Shields . | . . . . Core Remaining (%) 100 | 100 . . . Volleys Fired 92 | . 10 11 71 Largest 2 | . 2 2 2 Hottest 100 | . 40 50 100 Shots Fired 122 | . 20 15 87 Gun 61 | . 20 14 27 Cannon 36 | . . . 36 Launcher 17 | . . 1 16 Special 8 | . . . 8 Kinetic 61 | . 20 14 27 Thermal 44 | . . . 44 Explosive 17 | . . 1 16 Electromagnetic . | . . . . Robot Hit Streak 18 | . 3 5 18 Robot Miss Streak 4 | . 4 2 2 Penetration Max . | . . . . Secondary Targets 2 | . 2 . . Max Gunslinging Chain 1 | . 1 . . Shots Hit Robots 77 | . 9 11 57 Core Hits 37 | . 5 6 26 Critical Kills . | . . . . Critical Parts Destroyed . | . . . . Critical Strikes . | . . . . Melee Attacks . | . . . . Impact . | . . . . Slashing . | . . . . Piercing . | . . . . Sneak Attacks . | . . . . Combat Hostiles . | . . . . Follow-up Attacks . | . . . . Damage Inflicted 2109 | . 97 155 1857 Guns 381 | . 97 121 163 Cannons 845 | . . . 845 Explosions 883 | . . 34 849 Melee . | . . . . Ramming . | . . . . Kinetic 381 | . 97 121 163 Thermal 845 | . . . 845 Explosive 883 | . . 34 849 Electromagnetic . | . . . . Impact . | . . . . Slashing . | . . . . Piercing . | . . . . Highest Corruption . | . . . . Average Corruption . | . . . . Corruption Purged . | . . . . Corruption Blocked . | . . . . Overload Shots . | . . . . Overflow Damage 65 | . . . 65 Projectiles 65 | . . . 65 Explosions . | . . . . Melee . | . . . . Knockbacks . | . . . . Impact . | . . . . Kinetic . | . . . . Secondary . | . . . . Self-Inflicted Damage 59 | . . . 59 Shots 4 | . . . 4 Rammed . | . . . . Targets Rammed . | . . . . Kicked . | . . . . Crushed . | . . . . Highest Temperature 20 | . . 6 20 Average Temperature 8 | . . 4 8 Received Heat Transfer 288 | . . 84 204 Siege Activations . | . . . . Martial Activations . | . . . . Shielding Activations . | . . . . Robots Disrupted . | . . . . Combat Hostiles . | . . . . Robots Corrupted . | . . . . Combat Hostiles . | . . . . Parts Fried . | . . . . Impact Corruptions . | . . . . Robots Melted . | . . . . Combat Hostiles . | . . . . Parts Melted 1 | . . . 1 Heat Transferred . | . . . . Parts Sabotaged . | . . . . Parts Stolen . | . . . . Parts Stripped . | . . . . Power Chain Reactions . | . . . . Alert | -11 -10 -10 -10 ------- Run | Yrd Mat Min Sub Maximum Alert Level . | . . . . Low Security (%) 100 | 100 100 100 . Level 1 . | . . . . Level 2 . | . . . . Level 3 . | . . . . Level 4 . | . . . . Level 5 . | . . . . High Security . | . . . . Max Security . | . . . . Peak Influence 70 | . 70 34 . Initial 11 | . . 11 . Average 6 | . 9 5 . Influence Increases 362 | . 78 54 230 Destroy 0b10 Robot/C 240 | . 60 40 140 Destroy Leader 20 | . 10 10 . Successful Hack 8 | . 8 . . Destroy Structure 4 | . . 4 . Lose Combat Pursuer 90 | . . . 90 Influence Decreases 250 | . 48 84 118 Entered New Map 19 | . . 19 . Time Decay 211 | . 48 55 108 Lost Part 20 | . . 10 10 Squads Dispatched . | . . . . Investigation . | . . . . Extermination . | . . . . Reinforcement . | . . . . Assault . | . . . . Garrison . | . . . . Intercept . | . . . . Searches Triggered . | . . . . Construction Impeded . | . . . . Haulers Reinforced . | . . . . Active Scanning Responses . | . . . . Cargo Convoy Interrupts . | . . . . Stealth | -11 -10 -10 -10 --------- Run | Yrd Mat Min Sub Distress Signals 1 | . 1 . . Communications Jammed . | . . . . Distress Signals . | . . . . Times Spotted 32 | . 10 4 18 Peak Tracking Total 5 | . 5 2 5 Tactical Retreats 2 | . . . 2 Traps | -11 -10 -10 -10 ------- Run | Yrd Mat Min Sub Traps Triggered 1 | . 1 . . Indirectly . | . . . . Trap Hack Attempts . | . . . . Triggered . | . . . . Disarmed . | . . . . Reprogrammed . | . . . . Reused . | . . . . Traps Extracted . | . . . . Installed . | . . . . Triggered . | . . . . Machines | -11 -10 -10 -10 ---------- Run | Yrd Mat Min Sub Machines Disabled 2 | . . . 2 Max in Single Turn 1 | . . . 1 Machines Repaired . | . . . . Machines Dismantled . | . . . . Machines Sabotaged . | . . . . Overloaded Fab Kills . | . . . . Hacking | -11 -10 -10 -10 --------- Run | Yrd Mat Min Sub Machines Accessed 4 | . 3 . 1 Terminals 3 | . 3 . . Fabricators . | . . . . Repair Stations . | . . . . Recycling Units . | . . . . Scanalyzers . | . . . . Garrison Access . | . . . . Total Hacks 17 | . 15 . 2 Successful 9 | . 7 . 2 Failed 8 | . 8 . . Catastrophic . | . . . . Database Lockouts . | . . . . Manual 12 | . 12 . . Terminals 15 | . 15 . . Fabricators . | . . . . Repair Stations . | . . . . Recycling Units . | . . . . Scanalyzers . | . . . . Garrison Access . | . . . . Terminal Hacks 3 | . 1 . 2 Record 1 | . . . 1 Prototype ID Bank 1 | . 1 . . Proto ID Catalog 1 | . . . 1 Fabricator Hacks . | . . . . Repair Station Hacks . | . . . . Recycling Unit Hacks . | . . . . Scanalyzer . | . . . . Garrison Access Hacks . | . . . . Unauthorized Hacks 6 | . 6 . . Terminals 6 | . 6 . . Track 1 | . 1 . . Assimilate 2 | . 2 . . Botnet 2 | . 2 . . Operators 1 | . 1 . . Fabricators . | . . . . Repair Stations . | . . . . Recycling Units . | . . . . Scanalyzers . | . . . . Garrison Access . | . . . . Data Cores Recovered . | . . . . Used . | . . . . Hacking Detections 3 | . 3 . . Full Trace Events . | . . . . Feedback Events . | . . . . Feedback Blocked . | . . . . Robot Schematics Acquired . | . . . . Robots Built . | . . . . Authchips . | . . . . Time . | . . . . Total Robot Build Rating . | . . . . Part Schematics Acquired . | . . . . Parts Built . | . . . . Authchips . | . . . . Time . | . . . . Total Part Build Rating . | . . . . Parts Repaired . | . . . . Time . | . . . . Parts Recycled . | . . . . Recycled Matter . | . . . . Retrieved Matter . | . . . . Retrieved Components . | . . . . Parts Scanalyzed . | . . . . Part Schematics Acquired . | . . . . Parts Damaged . | . . . . Bothacking | -11 -10 -10 -10 ------------ Run | Yrd Mat Min Sub Used RIF Installer . | . . . . Robots Hacked . | . . . . Non-combat . | . . . . Combat . | . . . . Robot Hacks Applied . | . . . . Relay Couplers Released . | . . . . Fabnet Peak Effective % . | . . . . Robots Rewired . | . . . . Allies Hacked . | . . . . Hacks Repelled . | . . . . Allies | -11 -10 -10 -10 -------- Run | Yrd Mat Min Sub Total Allies . | . . . . Largest Group . | . . . . Highest-Rated Group . | . . . . Highest-Rated Ally . | . . . . Total Orders . | . . . . Ally Attacks . | . . . . Total Damage . | . . . . Kills . | . . . . Allies Corrupted . | . . . . Allies Melted . | . . . . Intel | -11 -10 -10 -10 ------- Run | Yrd Mat Min Sub Active Infowar (turns) 48 | . 48 . . Sensors 48 | . 48 . . Robot Analysis Total . | . . . . Derelict Logs Recovered 2 | . . 1 1 Drone Launches . | . . . . Drone Recoveries . | . . . . Exploration | -11 -10 -10 -10 ------------- Run | Yrd Mat Min Sub Turns Passed 1989 | 80 361 341 1207 Spaces Moved 1038 | 55 201 158 624 Core 22 | 22 . . . Treads 1016 | 33 201 158 624 Legs . | . . . . Wheels . | . . . . Hover . | . . . . Flight . | . . . . Fastest Speed 50 | 50 160 160 160 Average Speed 157 | 116 160 160 160 Slowest Speed 160 | 160 160 160 160 Overloaded Moves . | . . . . Propulsion Burnouts . | . . . . Robots Hopped . | . . . . Potential Cave-ins . | . . . . Cave-ins Triggered . | . . . . Exploration Rate (%) 32 | 4 45 38 43 Regions Visited 3 Branch Regions 2 Pre-discovered Areas 1 | . . 1 . Known Exits Taken . | . . . . Unknown Exits Taken 3 | 1 1 1 . Scrap Searched 3 | . . . 3 Spaces Dug . | . . . . Terrain Destroyed 68 | . . 4 64 Melee . | . . . . Projectile 6 | . . . 6 AOE 62 | . . 4 58 Terrain Rammed . | . . . . Walls Destroyed . | . . . . Machines Disabled . | . . . . Actions | -11 -10 -10 -10 --------- Run | Yrd Mat Min Sub Total 1266 | 68 223 234 741 Wait 68 | 2 . 57 9 Move 1035 | 54 200 157 624 Hop . | . . . . Pick Up 29 | 6 5 3 15 Fast Attach 9 | 6 3 . . Attach 6 | . . 1 5 Detach 2 | . 1 . 1 Swap 8 | . 1 2 5 Drop 17 | . 3 3 11 Fire 92 | . 10 11 71 Melee . | . . . . Ram . | . . . . Kick . | . . . . Crush . | . . . . Escape Stasis . | . . . . Rewire . | . . . . Trap . | . . . . Miscellaneous . | . . . . Route ------- -11/Scrapyard -10/Materials (discovered 2 exits: [*Mat] / [*Min]) -10/Mines (discovered 2 exits: [*Mat] / *Sub) -10/Subcaves (discovered 1 exit: [*Rec]) History --------- Turn | Location | Event 28 | -11/Scrapyard | Discovered new exit (range 16) 81 | -11/Scrapyard | Entered Materials 231 | -10/Materials | Discovered new exit (range 8) 304 | -10/Materials | Build established: Mutant 329 | -10/Materials | Discovered new exit (range 8) 442 | -10/Materials | Entered Mines 457 | -10/Mines | Joined a pair of Derelicts in attacking an 0b10 outpost 676 | -10/Mines | Learned location of Mines (-9) 676 | -10/Mines | Discovered new exit (range 12) 765 | -10/Mines | Discovered new exit (range 10) 783 | -10/Mines | Entered Subcaves 784 | -10/Subcaves | Approached by a straggling Scientist 847 | -10/Subcaves | Learned Materials emergency access door positions 981 | -10/Subcaves | A swath of the cavern ceiling suddenly collapsed 1059 | -10/Subcaves | Shifting Twisted Machinery released Spk. Treads 1118 | -10/Subcaves | Ambushed by angry Subdweller bent on revenge 1121 | -10/Subcaves | Core integrity fell below 50% 1370 | -10/Subcaves | Visited 4L-MR0's lab 1410 | -10/Subcaves | Found Powered Cannon 1434 | -10/Subcaves | Attached Powered Cannon, gained temporary slot: Power 1688 | -10/Subcaves | Discovered new exit (range 14) 1693 | -10/Subcaves | Core integrity fell below 20% 1990 | -10/Subcaves | Destroyed by EE-TQX(R) with Subdweller Machine Gun Last Messages --------------- 01719_ Machine disabled. 01721_ Destroyed Autobeam. 01721_ Autobeam Turret destroyed. 01722_ Flight Unit fries itself beyond repair. 01734_ Scrap Shield destroyed. 01735_ Autobeam Turret destroyed. 01738_ Acquired Multitool. 01742_ Acquired Sub. Power Source. 01746_ Acquired 12 matter. 01748_ Subatomizers dissect the Sub. Optics. 01768_ Acquired Sub. Machine Gun. 01773_ Acquired Aluminum Leg. 01774_ Subatomizers dissect the Assault Rifle. 01777_ Acquired Assault Rifle. 01968_ MI-PE3(R): "WINNING!" 01975_ Destroyed Scrap Shield. 01979_ Sub. Optics melted. 01979_ MI-PE3(R) destroyed. 01981_ Acquired 39 matter. Map ----- +----------------------------------------------------+ | # ### #### ##?##???????????????????? | | " #### #??????????????????????? | | #?## ## ####???????????????????? | | ####?# ## ##"""###??""#????????????? | | #### ##???# ###""""#?#""#????????????? | | #" #### ##??# ## ##""""#???????????? | | # ## #??## """""#???????????? | | ## # #???### # " """ ##???????????# | | ?# #?????## ###"" #"" #????###?##### | | ?## #??????## #?### #""##????# ##""%& | | ## #???????##### #???# #" #???##"""## =& | | # ##???????????###???# "" ##??#""""" % | | ### ####??????????????????###"# "#???## "# | | ?## #???????????????????????##" #????## ## | | ## #????????????????????????## ##????# ""#? | | # ###??????????????????#####?## ######" "##? | | ##????????????????????# #?# ## ###?? | | ##?????????????????????# ### ## ##???# | | ##??????????????????????# ## ##??? | | ##???????????????????????# #??# | | ##???????????????????????## #?? | | ##????????????????????##??# ## ] #??# | | ??????????????????????# ###< #### ## #??# | | ??????????????????????# ;<< #??## ######?## | | ??????????????????????# !&= #???## ##??### | | ??????????????????????# [@& #????# #?## | | ??????????????????????# R#* #????# ### | | ??????????????????????## ## #???## ## | | ??????????????????????? # #?### | | ??????????????????????< ## ### | | ?????????????????????& ## ## | | ?????????????????????<< "### ### | | ???????????????????? <"#### ### | | ???????????????????####???### ## ##### | | ????????????????????????????# ### #?# | | ????????????????????????????# #### #?# ##### | | ????????????????????????????## #?# #?###??## | | ????????????????????????????## #?# ### ## | | ????????????????????????????# #?# ## | | ????????????????????????????## ##?###### | | ?????????????????????????????###??????# | | ????????????????????????????????????# | | ???????????????????????????????????# ## | | ???????????????????????????????????# ##### | | ??????????????????????????????????# ###??# | | ?????????????????????????????????? #?????# | | ?????????????????????????????????? ???????# | | ??????????????????????????????????? ????????# | | ??????????????????????????????????? ??????????# | | ??????????????????????????????????????????????# | +----------------------------------------------------+ Best States ------------- Heat Dissipation 25 Energy Generation 19 Energy Capacity 250 Matter Stores 300 Matter Capacity 300 Sight Range 16 Robot Scan Range 14 Terrain Scan Density 10 Armor Coverage 800 Evasion (%) 50 Targeting Accuracy 5 Recoil Reduction 2 Item Schematics ----------------- None Robot Schematics ------------------ None Fabricated ------------ Nothing Repaired ---------- Nothing Alien Tech Used ----------------- None Achievements -------------- None Challenges ------------ None Game ------ Seed SpikedSubatomicTerrabomb Manual? 0 Play Time 00:26:30 Cumulative 78.6 hours Start 2025.08.31 @ 19:06:47 End 2025.09.05 @ 12:34:48 Sessions 3 Manual Loads 0 Difficulty Rogue Special Mode None Game No. 89 Rogue 89 Adventurer 0 Explorer 0 Win Type - Total 2 Types 2/0/0/0/0/0/0/0/0/0 Lore% 49 Gallery% 44 Achievement% 40 Wizard Run 0 Options --------- Layout 1 ASCII 0 Keyboard 1 Movement Vi Keybinds 0 Fullscreen 2 Font 24/Smallcaps Map View 50x35 Zoom Use 0% Tactical HUD 1 Map Filters NONE Filters NONE Steam 1 RUN: d56f8bfe-14b5-4318-9775-57b2ea1d360f